fUSD/lending_fUSD_20240804
["ID","MTS","AMOUNT","RATE_DAILY","PERIOD"]
[334176551,1722808254163,-1283.99,0.00023095,9]
[334176552,1722808254173,-719.81,0.00023095,9]
[334176553,1722808254183,-500.0,0.00023095,9]
[334176554,1722808254194,-500.0,0.00023095,9]
[334176555,1722808254277,-500.0,0.00023095,9]
[334176556,1722808254287,-855.21,0.00023095,9]
[334176557,1722808254296,-500.0,0.00023095,9]
[334176558,1722808254306,-785.87,0.00023095,9]
[334176559,1722808254315,-500.0,0.00023095,9]
[334176560,1722808254324,-536.81,0.00023095,9]
[334176561,1722808254333,-500.0,0.00023095,9]
[334176562,1722808254344,-500.0,0.00023095,9]
[334176563,1722808254357,-816.29,0.00023095,9]
[334176564,1722808254366,-500.0,0.00023095,9]
[334176565,1722808254375,-500.0,0.00023095,9]
[334176566,1722808254385,-533.97,0.00023095,9]
[334176567,1722808254394,-500.0,0.00023095,9]
[334176568,1722808254404,-1078.41,0.00023095,9]
[334176569,1722808254413,-500.0,0.00023095,9]
[334176570,1722808254424,-1158.88,0.00023095,9]
[334176571,1722808254434,-500.0,0.00023095,9]
[334176572,1722808254448,-500.0,0.00023095,9]
[334176573,1722808254462,-1173.95,0.00023095,9]
[334176574,1722808254471,-502.72,0.00023095,9]
[334176575,1722808254481,-500.0,0.00023095,9]
[334176576,1722808254490,-500.0,0.00023095,9]
[334176577,1722808254499,-1111.03,0.00023095,9]
[334176578,1722808254509,-617.41,0.00023095,9]
[334176579,1722808254521,-500.0,0.00023095,9]
[334176580,1722808254530,-500.0,0.00023095,9]
[334176581,1722808254540,-557.56,0.00023095,9]
[334176582,1722808254550,-500.0,0.00023095,9]
[334176583,1722808254559,-500.0,0.00023095,9]
[334176584,1722808254569,-500.0,0.00023095,9]
[334176585,1722808254578,-500.0,0.00023095,9]
[334176586,1722808254588,-500.0,0.00023095,9]
[334176587,1722808254598,-1071.68,0.00023095,9]
[334176588,1722808254607,-544.83,0.00023095,9]
[334176589,1722808254616,-783.99,0.00023095,9]
[334176590,1722808254625,-1352.26,0.00023095,9]
[334176591,1722808254635,-500.0,0.00023095,9]
[334176592,1722808254644,-500.0,0.00023095,9]
[334176593,1722808254654,-776.12,0.00023095,9]
[334176594,1722808254663,-862.87,0.00023095,9]
[334176595,1722808254672,-500.0,0.00023095,9]
[334176596,1722808254681,-829.41,0.00023095,9]
[334176597,1722808254692,-591.88,0.00023095,9]
[334176598,1722808254701,-977.86,0.00023095,9]
[334176599,1722808254711,-1390.7,0.00023095,9]
[334176600,1722808254720,-654.65,0.00023095,9]
[334176601,1722808254730,-879.33,0.00023095,9]
[334176602,1722808254740,-934.37,0.00023095,9]
[334176603,1722808254749,-500.0,0.00023095,9]
[334176604,1722808254759,-500.0,0.00023095,9]
[334176605,1722808254768,-959.32,0.00023095,9]
[334176606,1722808254778,-500.0,0.00023095,9]
[334176607,1722808254787,-500.0,0.00023095,9]
[334176608,1722808254797,-500.0,0.00023095,9]
[334176609,1722808254806,-500.0,0.00023095,9]
[334176610,1722808254815,-931.56,0.00023095,9]
[334176611,1722808254825,-500.0,0.00023095,9]
[334176612,1722808254834,-500.0,0.00023095,9]
[334176613,1722808254844,-500.0,0.00023095,9]
[334176614,1722808254854,-500.0,0.00023095,9]
[334176615,1722808254864,-1737.81,0.00023095,9]
[334176616,1722808254874,-752.87,0.00023095,9]
[334176617,1722808254885,-500.0,0.00023095,9]
[334176618,1722808254895,-500.0,0.00023095,9]
[334176619,1722808254906,-500.0,0.00023095,9]
[334176620,1722808254917,-500.0,0.00023095,9]
[334176621,1722808254928,-536.72917946,0.00023095,9]
[334176622,1722808254938,-500.0,0.00023095,9]
[334176623,1722808254949,-500.0,0.00023095,9]
[334176624,1722808254959,-612.87,0.00023095,9]
[334176625,1722808254969,-500.0,0.00023095,9]
[334176626,1722808254978,-500.0,0.00023095,9]
[334176627,1722808254987,-346.18,0.00023095,9]
[334176628,1722808254996,-763.92,0.00023095,9]
[334176629,1722808255005,-500.0,0.00023095,9]
[334176630,1722808255014,-500.0,0.00023095,9]
[334176631,1722808255024,-500.0,0.00023095,9]
[334176632,1722808255034,-500.0,0.00023095,9]
[334176633,1722808255043,-500.0,0.00023095,9]
[334176634,1722808255053,-626.96,0.00023095,9]
[334176635,1722808255062,-500.0,0.00023095,9]
[334176636,1722808255071,-500.0,0.00023095,9]
[334176637,1722808255080,-500.0,0.00023095,9]
[334176638,1722808255090,-569.25,0.00023095,9]
[334176639,1722808255099,-599.92,0.00023095,9]
[334176640,1722808255108,-463.0,0.00023095,9]
[334176641,1722808255117,-500.0,0.00023095,9]
[334176642,1722808255127,-500.0,0.00023095,9]
[334176643,1722808255137,-500.0,0.00023095,9]
[334176644,1722808255147,-686.04,0.00023095,9]
[334176645,1722808255158,-500.0,0.00023095,9]
[334176646,1722808255167,-500.0,0.00023095,9]
[334176647,1722808255176,-500.0,0.00023095,9]
[334176648,1722808255186,-500.0,0.00023095,9]
[334176649,1722808255196,-500.0,0.00023095,9]
[334176650,1722808255205,-760.21,0.00023095,9]
[334176651,1722808255214,-738.66,0.00023095,9]
[334176652,1722808255225,-663.15,0.00023095,9]
[334176653,1722808255234,-411.65,0.00023095,9]
[334176654,1722808255244,-500.0,0.00023095,9]
[334176655,1722808255255,-601.43,0.00023095,9]
[334176656,1722808255264,-500.0,0.00023095,9]
[334176657,1722808255274,-500.0,0.00023095,9]
[334176659,1722808255283,-632.04,0.00023095,9]
[334176660,1722808255294,-639.52,0.00023095,9]
[334176661,1722808255305,-504.6,0.00023095,9]
[334176662,1722808255316,-765.65,0.00023095,9]
[334176663,1722808255327,-467.09,0.00023095,9]
[334176664,1722808255338,-768.46,0.00023095,9]
[334176665,1722808255352,-767.82,0.00023095,9]
[334176666,1722808255361,-500.0,0.00023095,9]
[334176667,1722808255370,-558.54,0.00023095,9]
[334176668,1722808255380,-500.0,0.00023095,9]
[334176669,1722808255392,-937.27,0.00023095,9]
[334176670,1722808255402,-500.0,0.00023095,9]
[334176671,1722808255413,-702.85,0.00023095,9]
[334176672,1722808255423,-500.0,0.00023095,9]
[334176673,1722808255432,-997.01,0.00023095,9]
[334176674,1722808255443,-500.0,0.00023095,9]
[334176675,1722808255452,-500.0,0.00023095,9]
[334176676,1722808255461,-500.0,0.00023095,9]
[334176677,1722808255470,-991.62,0.00023095,9]
[334176678,1722808255479,-584.47,0.00023095,9]
[334176679,1722808255489,-500.0,0.00023095,9]
[334176680,1722808255498,-500.0,0.00023095,9]
[334176681,1722808255507,-500.0,0.00023095,9]
[334176682,1722808255517,-513.45,0.00023095,9]
[334176683,1722808255526,-500.0,0.00023095,9]
[334176684,1722808255536,-960.38,0.00023095,9]
[334176685,1722808255545,-500.0,0.00023095,9]
[334176686,1722808255554,-500.0,0.00023095,9]
[334176687,1722808255564,-500.0,0.00023095,9]
[334176688,1722808255573,-500.0,0.00023095,9]
[334176689,1722808255583,-226.62,0.00023095,9]
[334176690,1722808255592,-761.04,0.00023095,9]
[334176691,1722808255602,-597.42,0.00023095,9]
[334176692,1722808255612,-952.67,0.00023095,9]
[334176693,1722808255622,-500.0,0.00023095,9]
[334176694,1722808255632,-500.0,0.00023095,9]
[334176695,1722808255642,-500.0,0.00023095,9]
[334176696,1722808255652,-240.62006727,0.00023095,9]
[334176697,1722808255662,-552.06,0.00023095,9]
[334176698,1722808255671,-500.0,0.00023095,9]
[334176699,1722808255681,-500.0,0.00023095,9]
[334176700,1722808255691,-569.66,0.00023095,9]
[334176701,1722808255700,-500.0,0.00023095,9]
[334176702,1722808255710,-500.0,0.00023095,9]
[334176703,1722808255719,-500.0,0.00023095,9]
[334176704,1722808255729,-500.0,0.00023095,9]
[334176705,1722808255739,-500.0,0.00023095,9]
[334176706,1722808255748,-544.16,0.00023095,9]
[334176707,1722808255758,-500.0,0.00023095,9]
[334176708,1722808255768,-953.99,0.00023095,9]
[334176709,1722808255778,-500.0,0.00023095,9]
[334176710,1722808255788,-533.01,0.00023095,9]
[334176711,1722808255799,-1373.87,0.00023095,9]
[334176712,1722808255808,-500.0,0.00023095,9]
[334176713,1722808255818,-632.05,0.00023095,9]
[334176714,1722808255827,-500.0,0.00023095,9]
[334176715,1722808255837,-1112.58,0.00023095,9]
[334176716,1722808255847,-714.14,0.00023095,9]
[334176717,1722808255857,-500.0,0.00023095,9]
[334176718,1722808255867,-500.0,0.00023095,9]
[334176719,1722808255876,-782.39,0.00023095,9]
[334176720,1722808255886,-500.0,0.00023095,9]
[334176721,1722808255896,-500.0,0.00023095,9]
[334176722,1722808255906,-500.0,0.00023095,9]
[334176723,1722808255915,-500.0,0.00023095,9]
[334176724,1722808255924,-150.0,0.00023095,9]
[334176725,1722808255934,-4199.62,0.00023095,9]
[334176726,1722808255944,-500.0,0.00023095,9]
[334176727,1722808255954,-504.30414091,0.00023095,9]
[334176728,1722808255964,-722.13,0.00023095,9]
[334176729,1722808255974,-500.0,0.00023095,9]
[334176730,1722808255983,-500.0,0.00023095,9]
[334176731,1722808255993,-623.82,0.00023095,9]
[334176732,1722808256002,-517.68,0.00023095,9]
[334176733,1722808256012,-500.0,0.00023095,9]
[334176734,1722808256021,-500.0,0.00023095,9]
[334176735,1722808256030,-500.0,0.00023095,9]
[334176736,1722808256040,-500.0,0.00023095,9]
[334176737,1722808256050,-500.0,0.00023095,9]
[334176738,1722808256060,-5815.71,0.00023095,9]
[334176739,1722808256070,-883.43,0.00023095,9]
[334176740,1722808256079,-772.68,0.00023095,9]
[334176741,1722808256088,-841.1,0.00023095,9]
[334176742,1722808256098,-500.0,0.00023095,9]
[334176743,1722808256108,-563.53,0.00023095,9]
[334176744,1722808256117,-500.0,0.00023095,9]
[334176745,1722808256127,-500.0,0.00023095,9]
[334176746,1722808256136,-500.0,0.00023095,9]
[334176747,1722808256146,-500.0,0.00023095,9]
[334176748,1722808256155,-1089.56,0.00023095,9]
[334176749,1722808256165,-500.0,0.00023095,9]
[334176750,1722808256175,-500.0,0.00023095,9]
[334176751,1722808256184,-6276.89,0.00023095,9]
[334176752,1722808256195,-500.0,0.00023095,9]
[334176753,1722808256205,-500.0,0.00023095,9]
[334176754,1722808256214,-500.0,0.00023095,9]
[334176755,1722808256223,-500.0,0.00023095,9]
[334176756,1722808256232,-757.39,0.00023095,9]
[334176757,1722808256242,-517.23,0.00023095,9]
[334176758,1722808256252,-500.0,0.00023095,9]
[334176759,1722808256262,-500.0,0.00023095,9]
[334176760,1722808256272,-2014.44,0.00023095,9]
[334176761,1722808256281,-500.0,0.00023095,9]
[334176762,1722808256291,-500.0,0.00023095,9]
[334176763,1722808256300,-981.8,0.00023095,9]
[334176764,1722808256309,-850.93,0.00023095,9]
[334176765,1722808256319,-726.99,0.00023095,9]
[334176766,1722808256329,-1454.57,0.00023095,9]
[334176767,1722808256338,-500.0,0.00023095,9]
[334176768,1722808256351,-500.0,0.00023095,9]
[334176769,1722808256361,-500.0,0.00023095,9]
[334176770,1722808256371,-500.0,0.00023095,9]
[334176771,1722808256381,-500.0,0.00023095,9]
[334176772,1722808256393,-618.94,0.00023095,9]
[334176773,1722808256402,-500.0,0.00023095,9]
[334176774,1722808256412,-500.0,0.00023095,9]
[334176775,1722808256423,-1211.17,0.00023095,9]
[334176776,1722808256435,-1327.45,0.00023095,9]
[334176777,1722808256447,-1177.64,0.00023095,9]
[334176778,1722808256456,-500.0,0.00023095,9]
[334176779,1722808256466,-634.81,0.00023095,9]
[334176780,1722808256475,-1061.58,0.00023095,9]
[334176781,1722808256486,-3417.42,0.00023095,9]
[334176782,1722808256495,-500.0,0.00023095,9]
[334176783,1722808256504,-500.0,0.00023095,9]
[334176784,1722808256514,-500.0,0.00023095,9]
[334176785,1722808256524,-622.39,0.00023095,9]
[334176786,1722808256533,-511.01,0.00023095,9]
[334176787,1722808256542,-500.0,0.00023095,9]
[334176788,1722808256552,-2238.72,0.00023095,9]
[334176789,1722808256562,-1163.48,0.00023095,9]
[334176790,1722808256572,-500.0,0.00023095,9]
[334176791,1722808256582,-500.0,0.00023095,9]
[334176792,1722808256591,-500.0,0.00023095,9]
[334176793,1722808256600,-514.68,0.00023095,9]
[334176794,1722808256610,-1757.81,0.00023095,9]
[334176795,1722808256619,-500.0,0.00023095,9]
[334176796,1722808256629,-500.0,0.00023095,9]
[334176797,1722808256638,-500.0,0.00023095,9]
[334176798,1722808256648,-1033.23,0.00023095,9]
[334176799,1722808256657,-643.26,0.00023095,9]
[334176800,1722808256667,-500.0,0.00023095,9]
[334176801,1722808256676,-500.0,0.00023095,9]
[334176802,1722808256686,-12489.5,0.00023095,9]
[334176803,1722808256695,-500.0,0.00023095,9]
[334176804,1722808256704,-631.13,0.00023095,9]
[334176805,1722808256714,-1276.03,0.00023095,9]
[334176806,1722808256723,-529.58,0.00023095,9]
[334176807,1722808256733,-500.0,0.00023095,9]
[334176808,1722808256743,-779.99,0.00023095,9]
[334176809,1722808256752,-500.0,0.00023095,9]
[334176810,1722808256762,-2981.05,0.00023095,9]
[334176811,1722808256772,-11678.72,0.00023095,9]
[334176812,1722808256781,-500.0,0.00023095,9]
[334176813,1722808256791,-500.0,0.00023095,9]
[334176814,1722808256801,-500.0,0.00023095,9]
[334176815,1722808256811,-614.4,0.00023095,9]
[334176816,1722808256821,-634.34,0.00023095,9]
[334176817,1722808256831,-500.0,0.00023095,9]
[334176818,1722808256841,-546.03519972,0.00023095,9]
[334176819,1722808256851,-500.0,0.00023095,9]
[334176820,1722808256860,-500.0,0.00023095,9]
[334176821,1722808256870,-1729.95,0.00023095,9]
[334176822,1722808256879,-500.0,0.00023095,9]
[334176823,1722808256889,-506.13,0.00023095,9]
[334176824,1722808256899,-540.84,0.00023095,9]
[334176825,1722808256909,-500.0,0.00023095,9]
[334176826,1722808256918,-23236.78,0.00023095,9]
[334176827,1722808256928,-500.0,0.00023095,9]
[334176828,1722808256937,-500.0,0.00023095,9]
[334176829,1722808256949,-500.0,0.00023095,9]
[334176830,1722808256959,-1200.59,0.00023095,9]
[334176831,1722808256968,-569.41,0.00023095,9]
[334176832,1722808256978,-4698.62,0.00023095,9]
[334176833,1722808256987,-568.61,0.00023095,9]
[334176834,1722808256997,-1192.88,0.00023095,9]
[334176835,1722808257006,-1281.98,0.00023095,9]
[334176836,1722808257015,-1271.97,0.00023095,9]
[334176837,1722808257025,-500.0,0.00023095,9]
[334176838,1722808257034,-329.86,0.00023095,9]
[334176839,1722808257044,-1027.28,0.00023095,9]
[334176840,1722808257053,-1622.51,0.00023095,9]
[334176841,1722808257063,-500.0,0.00023095,9]
[334176842,1722808257073,-500.0,0.00023095,9]
[334176843,1722808257081,-500.0,0.00023095,9]
[334176844,1722808257090,-1707.63,0.00023095,9]
[334176845,1722808257100,-500.0,0.00023095,9]
[334176846,1722808257110,-500.0,0.00023095,9]
[334176847,1722808257119,-500.0,0.00023095,9]
[334176848,1722808257129,-500.0,0.00023095,9]
[334176849,1722808257138,-3236.7,0.00023095,9]
[334176850,1722808257148,-2599.43,0.00023095,9]
[334176851,1722808257158,-1221.77,0.00023095,9]
[334176852,1722808257167,-733.71,0.00023095,9]
[334176853,1722808257177,-717.53,0.00023095,9]
[334176854,1722808257186,-1426.02,0.00023095,9]
[334176855,1722808257198,-500.0,0.00023095,9]
[334176856,1722808257208,-915.39,0.00023095,9]
[334176857,1722808257217,-500.0,0.00023095,9]
[334176858,1722808257228,-500.0,0.00023095,9]
[334176859,1722808257238,-500.0,0.00023095,9]
[334176860,1722808257247,-500.0,0.00023095,9]
[334176861,1722808257256,-546.42,0.00023095,9]
[334176862,1722808257266,-1846.72,0.00023095,9]
[334176863,1722808257276,-1432.97,0.00023095,9]
[334176864,1722808257286,-500.0,0.00023095,9]
[334176865,1722808257295,-500.0,0.00023095,9]
[334176866,1722808257306,-500.0,0.00023095,9]
[334176867,1722808257316,-5800.89,0.00023095,9]
[334176868,1722808257327,-850.8,0.00023095,9]
[334176869,1722808257337,-2314.63,0.00023095,9]
[334176870,1722808257352,-635.84,0.00023095,9]
[334176871,1722808257362,-233.83,0.00023095,9]
[334176872,1722808257371,-1171.12,0.00023095,9]
[334176873,1722808257381,-500.0,0.00023095,9]
[334176874,1722808257391,-500.0,0.00023095,9]
[334176875,1722808257401,-500.0,0.00023095,9]
[334176876,1722808257410,-1133.24,0.00023095,9]
[334176877,1722808257422,-4311.17,0.00023095,9]
[334176878,1722808257432,-500.0,0.00023095,9]
[334176879,1722808257443,-1437.87,0.00023095,9]
[334176880,1722808257452,-1330.19,0.00023095,9]
[334176881,1722808257462,-870.44,0.00023095,9]
[334176882,1722808257472,-839.24,0.00023095,9]
[334176883,1722808257481,-505.59830197,0.00023095,9]
[334176884,1722808257491,-500.0,0.00023095,9]
[334176885,1722808257500,-958.07,0.00023095,9]
[334176886,1722808257511,-638.43,0.00023095,9]
[334176887,1722808257520,-383.9872292,0.00023095,9]
[334176888,1722808257530,-3388.84,0.00023095,9]
[334176889,1722808257539,-500.0,0.00023095,9]
[334176890,1722808257549,-2651.96,0.00023095,9]
[334176891,1722808257559,-3905.85,0.00023095,9]
[334176892,1722808257569,-251.97,0.00023095,9]
[334176893,1722808257579,-1565.08,0.00023095,9]
[334176894,1722808257589,-500.0,0.00023095,9]
[334176895,1722808257599,-688.02,0.00023095,9]
[334176896,1722808257609,-939.01,0.00023095,9]
[334176897,1722808257619,-743.42,0.00023095,9]
[334176898,1722808257629,-500.0,0.00023095,9]
[334176899,1722808257639,-887.24,0.00023095,9]
[334176900,1722808257648,-155.0,0.00023095,9]
[334176901,1722808257658,-1537.92,0.00023095,9]
[334176902,1722808257667,-500.0,0.00023095,9]
[334176903,1722808257676,-540.44,0.00023095,9]
[334176904,1722808257686,-500.0,0.00023095,9]
[334176905,1722808257696,-1015.22,0.00023095,9]
[334176906,1722808257706,-686.97,0.00023095,9]
[334176907,1722808257715,-500.0,0.00023095,9]
[334176908,1722808257725,-500.0,0.00023095,9]
[334176909,1722808257734,-500.0,0.00023095,9]
[334176910,1722808257744,-1597.27,0.00023095,9]
[334176911,1722808257753,-500.0,0.00023095,9]
[334176912,1722808257763,-1889.71,0.00023095,9]
[334176913,1722808257773,-377.99627396,0.00023095,9]
[334176914,1722808257782,-500.0,0.00023095,9]
[334176915,1722808257792,-500.0,0.00023095,9]
[334176916,1722808257802,-968.49,0.00023095,9]
[334176917,1722808257812,-945.11,0.00023095,9]
[334176918,1722808257822,-702.57,0.00023095,9]
[334176919,1722808257831,-1609.75,0.00023095,9]
[334176920,1722808257840,-726.95,0.00023095,9]
[334176921,1722808257851,-1401.14,0.00023095,9]
[334176922,1722808257860,-964.2,0.00023095,9]
[334176923,1722808257870,-4678.73695972,0.00023095,9]
[334176924,1722808258421,-354.36462428,0.00023095,9]
[334176925,1722808259045,-155.0,0.00019387,2]
[334176926,1722808259056,-250.0,0.00022096,2]
[334176927,1722808259066,-275.31671937,0.00023095,9]
[334176928,1722808259078,-6213.41169663,0.00023095,9]
[334176929,1722808259088,-500.0,0.00023095,9]
[334176930,1722808259097,-522.62,0.00023095,9]
[334176931,1722808259107,-722.55,0.00023095,9]
[334176932,1722808259117,-1538.43,0.00023095,9]
[334176933,1722808259128,-500.0,0.00023095,9]
[334176934,1722808259138,-1248.45,0.00023095,9]
[334176935,1722808259148,-615.33,0.00023095,9]
[334176936,1722808259158,-585.46,0.00023095,9]
[334176937,1722808259168,-1134.32,0.00023095,9]
[334176938,1722808259178,-1241.97,0.00023095,9]
[334176939,1722808259189,-958.65,0.00023095,9]
[334176940,1722808259200,-1175.13,0.00023095,9]
[334176941,1722808259210,-560.66,0.00023095,9]
[334176942,1722808259220,-1658.77,0.00023095,9]
[334176943,1722808259230,-500.0,0.00023095,9]
[334176944,1722808259241,-500.0,0.00023095,9]
[334176945,1722808259250,-2401.7,0.00023095,9]
[334176946,1722808259262,-1269.79,0.00023095,9]
[334176947,1722808259271,-500.0,0.00023095,9]
[334176948,1722808259281,-500.0,0.00023095,9]
[334176949,1722808259291,-500.0,0.00023095,9]
[334176950,1722808259302,-1752.63,0.00023095,9]
[334176951,1722808259312,-1075.56,0.00023095,9]
[334176952,1722808259323,-500.0,0.00023095,9]
[334176953,1722808259333,-1599.43,0.00023095,9]
[334176954,1722808259347,-500.0,0.00023095,9]
[334176955,1722808259357,-889.42,0.00023095,9]
[334176956,1722808259368,-969.47,0.00023095,9]
[334176957,1722808259377,-1818.89,0.00023095,9]
[334176958,1722808259387,-1037.48,0.00023095,9]
[334176959,1722808259398,-1259.11,0.00023095,9]
[334176960,1722808259410,-554.84465685,0.00023095,9]
[334176961,1722808259420,-500.0,0.00023095,9]
[334176962,1722808259431,-834.84,0.00023095,9]
[334176963,1722808259442,-500.0,0.00023095,9]
[334176964,1722808259453,-577.39,0.00023095,9]
[334176965,1722808259462,-2253.93,0.00023095,9]
[334176966,1722808259472,-2016.46,0.00023095,9]
[334176967,1722808259481,-500.0,0.00023095,9]
[334176968,1722808259491,-588.57,0.00023095,9]
[334176969,1722808259501,-598.85,0.00023095,9]
[334176970,1722808259511,-577.92,0.00023095,9]
[334176971,1722808259521,-977.85,0.00023095,9]
[334176972,1722808259531,-554.75,0.00023095,9]
[334176973,1722808259541,-500.0,0.00023095,9]
[334176974,1722808259550,-1122.14,0.00023095,9]
[334176975,1722808259560,-500.0,0.00023095,9]
[334176976,1722808259570,-505.57,0.00023095,9]
[334176977,1722808259580,-198.35,0.00023095,9]
[334176978,1722808259589,-500.0,0.00023095,9]
[334176979,1722808259599,-2121.68,0.00023095,9]
[334176980,1722808259608,-500.0,0.00023095,9]
[334176981,1722808259618,-500.0,0.00023095,9]
[334176982,1722808259628,-758.65,0.00023095,9]
[334176983,1722808259638,-500.0,0.00023095,9]
[334176984,1722808259648,-2630.4,0.00023095,9]
[334176985,1722808259658,-1531.64,0.00023095,9]
[334176986,1722808259668,-500.0,0.00023095,9]
[334176987,1722808259678,-2100.26324652,0.00023095,9]
[334176988,1722808259791,-2991.87675348,0.00023095,9]
[334176989,1722808259801,-500.0,0.00023095,9]
[334176990,1722808259811,-500.0,0.00023095,9]
[334176991,1722808259821,-582.03,0.00023095,9]
[334176992,1722808259831,-500.0,0.00023095,9]
[334176993,1722808259840,-500.0,0.00023095,9]
[334176994,1722808259850,-1530.68,0.00023095,9]
[334176995,1722808259860,-500.0,0.00023095,9]
[334176996,1722808259870,-1170.49,0.00023095,9]
[334176997,1722808259880,-500.0,0.00023095,9]
[334176998,1722808259890,-671.22,0.00023095,9]
[334176999,1722808259900,-1508.25,0.00023095,9]
[334177000,1722808259910,-758.63,0.00023095,9]
[334177001,1722808259919,-70.85212817,0.00023095,9]
[334177002,1722808259931,-1950.83787183,0.00023095,9]
[334177003,1722808259943,-500.0,0.00023095,9]
[334177004,1722808259952,-500.0,0.00023095,9]
[334177005,1722808259962,-500.0,0.00023095,9]
[334177006,1722808259972,-33.16212817,0.00023095,9]
[334177007,1722808259985,-466.83787183,0.00023095,9]
[334177008,1722808259995,-500.0,0.00023095,9]
[334177009,1722808260004,-791.24,0.00023095,9]
[334177010,1722808260014,-150.89,0.00023095,9]
[334177011,1722808260023,-500.0,0.00023095,9]
[334177012,1722808260033,-500.0,0.00023095,9]
[334177013,1722808260043,-500.0,0.00023095,9]
[334177014,1722808260053,-500.0,0.00023095,9]
[334177015,1722808260063,-612.55,0.00023095,9]
[334177016,1722808260073,-500.0,0.00023095,9]
[334177017,1722808260084,-1915.06,0.00023095,9]
[334177018,1722808260094,-1129.38,0.00023095,9]
[334177019,1722808260104,-500.0,0.00023095,9]
[334177020,1722808260114,-3171.97,0.00023095,9]
[334177021,1722808260124,-408.27752385,0.00023095,9]
[334177022,1722808260136,-91.72247615,0.00023095,9]
[334177023,1722808260146,-500.0,0.00023095,9]
[334177024,1722808260155,-650.55,0.00023095,9]
[334177025,1722808260165,-630.14,0.00023095,9]
[334177026,1722808260175,-500.0,0.00023095,9]
[334177027,1722808260185,-275.19662229,0.00023095,9]
[334177028,1722808260198,-636.47337771,0.00023095,9]
[334177029,1722808260208,-698.44346655,0.00023095,9]
[334177030,1722808260219,-42.85653345,0.00023095,9]
[334177031,1722808260229,-2429.61346655,0.00023095,9]
[334177032,1722808260241,-60.77653345,0.00023095,9]
[334177033,1722808260251,-275.18529425,0.00023095,9]
[334177034,1722808260267,-397.62863933,0.00023095,9]
[334177035,1722808260279,-788.49606642,0.00023095,9]
[334177036,1722808260288,-500.0,0.00023095,9]
[334177037,1722808260298,-891.88108761,0.00023095,9]
[334177038,1722808261650,-634.62891239,0.00023095,9]
[334177039,1722808261660,-1939.77,0.00023095,9]
[334177040,1722808261670,-1463.8,0.00023095,9]
[334177041,1722808261680,-1091.5,0.00023095,9]
[334177042,1722808261690,-3293.43,0.00023095,9]
[334177043,1722808261701,-1390.4,0.00023095,9]
[334177044,1722808261711,-500.0,0.00023095,9]
[334177045,1722808261720,-1257.49,0.00023095,9]
[334177046,1722808261730,-500.0,0.00023095,9]
[334177047,1722808261739,-500.0,0.00023095,9]
[334177048,1722808261749,-1128.16,0.00023095,9]
[334177049,1722808261759,-586.39,0.00023095,9]
[334177050,1722808261769,-500.0,0.00023095,9]
[334177051,1722808261778,-271.64255733,0.00023095,9]